fUST/lending_fUST_20241229
["ID","MTS","AMOUNT","RATE_DAILY","PERIOD"]
[347040613,1735481440493,-500.0,9.24e-05,2]
[347040614,1735481440504,-500.0,9.24e-05,2]
[347040615,1735481440514,-500.0,9.24e-05,2]
[347040616,1735481440524,-500.0,9.24e-05,2]
[347040617,1735481440536,-500.0,9.24e-05,2]
[347040618,1735481440545,-500.0,9.24e-05,2]
[347040619,1735481440554,-535.06,9.24e-05,2]
[347040620,1735481440563,-500.0,9.24e-05,2]
[347040621,1735481440572,-500.0,9.24e-05,2]
[347040622,1735481440581,-500.0,9.24e-05,2]
[347040623,1735481440591,-754.68,9.24e-05,2]
[347040624,1735481440600,-1646.12,9.24e-05,2]
[347040625,1735481440609,-756.19,9.24e-05,2]
[347040626,1735481440619,-502.16045939,9.24e-05,2]
[347040627,1735481440628,-500.0,9.24e-05,2]
[347040628,1735481440638,-500.0,9.24e-05,2]
[347040629,1735481440647,-598.21,9.24e-05,2]
[347040630,1735481440656,-500.0,9.24e-05,2]
[347040631,1735481440665,-500.0,9.24e-05,2]
[347040632,1735481440675,-500.0,9.24e-05,2]
[347040633,1735481440684,-500.0,9.24e-05,2]
[347040634,1735481440694,-500.0,9.24e-05,2]
[347040635,1735481440703,-500.98339266,9.24e-05,2]
[347040636,1735481440712,-500.0,9.24e-05,2]
[347040637,1735481440721,-501.69199586,9.24e-05,2]
[347040638,1735481440731,-571.86378003,9.24e-05,2]
[347040639,1735481440740,-500.0,9.24e-05,2]
[347040640,1735481440749,-500.0,9.24e-05,2]
[347040641,1735481440760,-500.61303328,9.24e-05,2]
[347040642,1735481440770,-500.0,9.24e-05,2]
[347040643,1735481440779,-500.0,9.24e-05,2]
[347040644,1735481440788,-500.0,9.24e-05,2]
[347040645,1735481440798,-500.0,9.24e-05,2]
[347040646,1735481440807,-502.96580998,9.24e-05,2]
[347040647,1735481440816,-164.09686466,9.24e-05,2]
[347040648,1735481440826,-152.2785925,9.24e-05,2]
[347040649,1735481440835,-500.0,9.24e-05,2]
[347040650,1735481440845,-500.0,9.24e-05,2]
[347040651,1735481440855,-500.0,9.24e-05,2]
[347040652,1735481440864,-500.0,9.24e-05,2]
[347040653,1735481440873,-500.0,9.24e-05,2]
[347040654,1735481440883,-376.6304869,9.24e-05,2]
[347040655,1735481440892,-500.0,9.24e-05,2]
[347040656,1735481440902,-500.0,9.24e-05,2]
[347040657,1735481440912,-1165.8,9.24e-05,2]
[347040658,1735481440921,-500.0,9.24e-05,2]
[347040659,1735481440931,-500.0,9.24e-05,2]
[347040660,1735481440940,-500.0,9.24e-05,2]
[347040661,1735481440949,-602.63,9.24e-05,2]
[347040662,1735481440959,-500.0,9.24e-05,2]
[347040663,1735481440968,-503.24400794,9.24e-05,2]
[347040664,1735481440977,-500.86476837,9.24e-05,2]
[347040665,1735481440987,-500.0,9.24e-05,2]
[347040666,1735481440996,-500.0,9.24e-05,2]
[347040667,1735481441007,-717.69,9.24e-05,2]
[347040668,1735481441017,-503.03970037,9.24e-05,2]
[347040669,1735481441027,-692.5,9.24e-05,2]
[347040670,1735481441037,-500.0,9.24e-05,2]
[347040671,1735481441046,-505.65961705,9.24e-05,2]
[347040672,1735481441055,-500.0,9.24e-05,2]
[347040673,1735481441064,-500.0,9.24e-05,2]
[347040674,1735481441074,-500.0,9.24e-05,2]
[347040675,1735481441083,-521.51416532,9.24e-05,2]
[347040676,1735481441093,-500.0,9.24e-05,2]
[347040677,1735481441102,-500.0,9.24e-05,2]
[347040678,1735481441112,-500.0,9.24e-05,2]
[347040679,1735481441121,-500.0,9.24e-05,2]
[347040680,1735481441130,-501.00418216,9.24e-05,2]
[347040681,1735481441140,-500.0,9.24e-05,2]
[347040682,1735481441150,-500.0,9.24e-05,2]
[347040683,1735481441159,-500.0,9.24e-05,2]
[347040684,1735481441168,-501.36604386,9.24e-05,2]
[347040685,1735481441178,-598.29,9.24e-05,2]
[347040686,1735481441188,-500.0,9.24e-05,2]
[347040687,1735481441198,-500.0,9.24e-05,2]
[347040688,1735481441208,-500.0,9.24e-05,2]
[347040689,1735481441218,-500.9927212,9.24e-05,2]
[347040690,1735481441227,-635.465012,9.24e-05,2]
[347040691,1735481441237,-500.0,9.24e-05,2]
[347040692,1735481441246,-500.0,9.24e-05,2]
[347040693,1735481441257,-500.0,9.24e-05,2]
[347040694,1735481441266,-500.0,9.24e-05,2]
[347040695,1735481441276,-500.0,9.24e-05,2]
[347040696,1735481441286,-501.00391146,9.24e-05,2]
[347040697,1735481441295,-500.0,9.24e-05,2]
[347040698,1735481441305,-500.0,9.24e-05,2]
[347040699,1735481441315,-500.0,9.24e-05,2]
[347040700,1735481441324,-524.69774843,9.24e-05,2]
[347040701,1735481441334,-500.0,9.24e-05,2]
[347040702,1735481441343,-500.0,9.24e-05,2]
[347040703,1735481441352,-500.0,9.24e-05,2]
[347040704,1735481441362,-500.0,9.24e-05,2]
[347040705,1735481441371,-500.0,9.24e-05,2]
[347040706,1735481441380,-500.0,9.24e-05,2]
[347040707,1735481441390,-500.0,9.24e-05,2]
[347040708,1735481441399,-500.0,9.24e-05,2]
[347040709,1735481441409,-500.0,9.24e-05,2]
[347040710,1735481441418,-500.0,9.24e-05,2]
[347040711,1735481441503,-500.0,9.241e-05,2]
[347040712,1735481441514,-500.0,9.241e-05,2]
[347040713,1735481441524,-500.0,9.241e-05,2]
[347040714,1735481441534,-328.4904741,9.241e-05,2]
[347040715,1735481441544,-500.0,9.241e-05,2]
[347040716,1735481441553,-500.0,9.241e-05,2]
[347040717,1735481441562,-500.0,9.241e-05,2]
[347040718,1735481441572,-500.0,9.241e-05,2]
[347040719,1735481441581,-500.0,9.241e-05,2]
[347040720,1735481441590,-500.0,9.241e-05,2]
[347040721,1735481441600,-500.0,9.241e-05,2]
[347040722,1735481441609,-500.0,9.241e-05,2]
[347040723,1735481441618,-500.0,9.241e-05,2]
[347040724,1735481441628,-500.0,9.241e-05,2]
[347040725,1735481441637,-500.0,9.241e-05,2]
[347040726,1735481441646,-503.60880248,9.241e-05,2]
[347040727,1735481441655,-500.0,9.241e-05,2]
[347040728,1735481441664,-500.0,9.241e-05,2]
[347040729,1735481441674,-500.0,9.241e-05,2]
[347040730,1735481441683,-500.0,9.241e-05,2]
[347040731,1735481441693,-14519.97,9.241e-05,2]
[347040732,1735481441702,-500.0,9.241e-05,2]
[347040733,1735481441711,-500.0,9.241e-05,2]
[347040734,1735481441720,-500.0,9.241e-05,2]
[347040735,1735481441730,-501.36076185,9.241e-05,2]
[347040736,1735481441739,-521.93,9.241e-05,2]
[347040737,1735481441749,-500.0,9.241e-05,2]
[347040738,1735481441760,-500.56468583,9.241e-05,2]
[347040739,1735481441769,-500.0,9.241e-05,2]
[347040740,1735481441779,-631.0059852,9.241e-05,2]
[347040741,1735481441788,-484.18230809,9.241e-05,2]
[347040742,1735481441797,-500.0,9.241e-05,2]
[347040743,1735481441806,-504.20609954,9.241e-05,2]
[347040744,1735481441816,-500.0,9.241e-05,2]
[347040745,1735481441825,-500.0,9.241e-05,2]
[347040746,1735481441835,-500.0,9.241e-05,2]
[347040747,1735481441844,-500.0,9.241e-05,2]
[347040748,1735481441854,-500.0,9.241e-05,2]
[347040749,1735481441864,-500.0,9.242e-05,2]
[347040750,1735481441874,-1654.88,9.242e-05,2]
[347040751,1735481441883,-500.0,9.242e-05,2]
[347040752,1735481441894,-500.0,9.242e-05,2]
[347040753,1735481441903,-500.0,9.242e-05,2]
[347040754,1735481441913,-500.0,9.242e-05,2]
[347040755,1735481441923,-500.0,9.242e-05,2]
[347040756,1735481441932,-502.33794528,9.242e-05,2]
[347040757,1735481441942,-500.0,9.242e-05,2]
[347040758,1735481441951,-500.0,9.242e-05,2]
[347040759,1735481441961,-500.0,9.242e-05,2]
[347040760,1735481441971,-500.0,9.242e-05,2]
[347040761,1735481441981,-500.0,9.242e-05,2]
[347040762,1735481441990,-504.09148116,9.242e-05,2]
[347040763,1735481441999,-500.0,9.242e-05,2]
[347040764,1735481442011,-500.0,9.242e-05,2]
[347040765,1735481442020,-500.0,9.242e-05,2]
[347040766,1735481442030,-500.0,9.242e-05,2]
[347040767,1735481442040,-500.0,9.242e-05,2]
[347040768,1735481442050,-502.3763763,9.242e-05,2]
[347040769,1735481442060,-500.0,9.242e-05,2]
[347040770,1735481442069,-500.0,9.242e-05,2]
[347040771,1735481442079,-500.0,9.242e-05,2]
[347040772,1735481442088,-500.0,9.242e-05,2]
[347040773,1735481442098,-500.0,9.242e-05,2]
[347040774,1735481442108,-500.0,9.242e-05,2]
[347040775,1735481442118,-461.33461376,9.242e-05,2]
[347040776,1735481442128,-500.0,9.242e-05,2]
[347040777,1735481442137,-501.47433253,9.242e-05,2]
[347040778,1735481442147,-500.0,9.242e-05,2]
[347040779,1735481442156,-500.0,9.242e-05,2]
[347040780,1735481442166,-502.60403765,9.242e-05,2]
[347040781,1735481442176,-500.0,9.242e-05,2]
[347040782,1735481442186,-503.89358678,9.242e-05,2]
[347040783,1735481442195,-500.0,9.242e-05,2]
[347040784,1735481442205,-500.0,9.242e-05,2]
[347040785,1735481442215,-506.08971714,9.242e-05,2]
[347040786,1735481442225,-502.22455953,9.242e-05,2]
[347040787,1735481442234,-500.0,9.242e-05,2]
[347040788,1735481442244,-500.0,9.242e-05,2]
[347040789,1735481442254,-500.0,9.242e-05,2]
[347040790,1735481442263,-500.0,9.242e-05,2]
[347040791,1735481442273,-679.38,9.242e-05,2]
[347040792,1735481442282,-500.0,9.242e-05,2]
[347040793,1735481442292,-679.38,9.242e-05,2]
[347040794,1735481442302,-500.0,9.242e-05,2]
[347040796,1735481442311,-384.19448337,9.242e-05,2]
[347040798,1735481442321,-610.17023921,9.242e-05,2]
[347040799,1735481442331,-500.0,9.243e-05,2]
[347040800,1735481442340,-500.0,9.243e-05,2]
[347040801,1735481442350,-2927.25,9.243e-05,2]
[347040802,1735481442359,-587.66,9.243e-05,2]
[347040803,1735481442368,-500.0,9.243e-05,2]
[347040804,1735481442378,-500.0,9.243e-05,2]
[347040806,1735481442388,-679.38,9.244e-05,2]
[347040807,1735481442399,-4583.19,9.244e-05,2]
[347040808,1735481442408,-286.18490608,9.51e-05,2]
[347040809,1735481442418,-500.0,9.51e-05,2]
[347040810,1735481442427,-500.0,9.51e-05,2]
[347040811,1735481442436,-500.0,9.512e-05,2]
[347040812,1735481442446,-1446.72,9.512e-05,2]
[347040813,1735481442459,-731.37,9.512e-05,2]
[347040814,1735481442469,-500.0,9.514e-05,2]
[347040815,1735481442478,-500.0,9.514e-05,2]
[347040816,1735481442489,-500.0,9.514e-05,2]
[347040817,1735481442498,-502.63721505,9.514e-05,2]
[347040818,1735481442508,-500.0,9.514e-05,2]
[347040819,1735481442517,-500.0,9.514e-05,2]
[347040820,1735481442527,-500.0,9.514e-05,2]
[347040821,1735481442536,-500.0,9.514e-05,2]
[347040822,1735481442546,-500.0,9.514e-05,2]
[347040824,1735481442555,-500.0,9.514e-05,2]
[347040825,1735481442564,-500.0,9.514e-05,2]
[347040826,1735481442574,-500.0,9.514e-05,2]
[347040827,1735481442583,-500.0,9.514e-05,2]
[347040828,1735481442593,-500.0,9.514e-05,2]
[347040829,1735481442602,-500.0,9.514e-05,2]
[347040830,1735481442611,-500.0,9.514e-05,2]
[347040831,1735481442620,-505.1481969,9.514e-05,2]
[347040832,1735481442630,-500.0,9.514e-05,2]
[347040833,1735481442639,-500.0,9.514e-05,2]
[347040834,1735481442648,-500.0,9.514e-05,2]
[347040835,1735481442657,-500.0,9.514e-05,2]
[347040836,1735481442667,-500.0,9.514e-05,2]
[347040837,1735481442676,-500.0,9.514e-05,2]
[347040838,1735481442686,-500.0,9.514e-05,2]
[347040839,1735481442696,-500.0,9.514e-05,2]
[347040840,1735481442705,-500.0,9.514e-05,2]
[347040841,1735481442714,-500.0,9.514e-05,2]
[347040842,1735481442723,-500.0,9.514e-05,2]
[347040843,1735481442733,-500.0,9.514e-05,2]
[347040844,1735481442742,-621.02,9.514e-05,2]
[347040845,1735481442752,-500.89295916,9.514e-05,2]
[347040846,1735481442762,-500.0,9.514e-05,2]
[347040847,1735481442771,-464.79531377,9.514e-05,2]
[347040848,1735481442780,-500.0,9.514e-05,2]
[347040849,1735481442789,-500.0,9.514e-05,2]
[347040850,1735481442799,-500.0,9.514e-05,2]
[347040851,1735481442808,-500.0,9.514e-05,2]
[347040852,1735481442818,-500.0,9.514e-05,2]
[347040853,1735481442827,-500.0,9.514e-05,2]
[347040854,1735481442836,-472.07496135,9.514e-05,2]
[347040855,1735481442846,-503.45643319,9.514e-05,2]
[347040856,1735481442856,-500.0,9.514e-05,2]
[347040857,1735481442865,-500.0,9.514e-05,2]
[347040858,1735481442874,-500.0,9.514e-05,2]
[347040859,1735481442883,-503.01522744,9.514e-05,2]
[347040860,1735481442893,-500.0,9.514e-05,2]
[347040861,1735481442904,-500.0,9.514e-05,2]
[347040862,1735481442913,-500.0,9.514e-05,2]
[347040863,1735481442922,-535.06,9.514e-05,2]
[347040864,1735481442932,-502.62552808,9.514e-05,2]
[347040865,1735481442941,-500.0,9.514e-05,2]
[347040866,1735481442951,-754.68,9.514e-05,2]
[347040867,1735481442960,-1646.12,9.514e-05,2]
[347040868,1735481442969,-756.19,9.514e-05,2]
[347040869,1735481442979,-500.0,9.514e-05,2]
[347040870,1735481442988,-504.58509309,9.514e-05,2]
[347040871,1735481442997,-500.0,9.514e-05,2]
[347040872,1735481443007,-598.21,9.514e-05,2]
[347040873,1735481443017,-500.0,9.514e-05,2]
[347040874,1735481443026,-500.0,9.514e-05,2]
[347040875,1735481443036,-500.0,9.514e-05,2]
[347040876,1735481443045,-277.99055866,9.514e-05,2]
[347040877,1735481443056,-500.0,9.514e-05,2]
[347040878,1735481443066,-500.0,9.514e-05,2]
[347040879,1735481443076,-500.0,9.514e-05,2]
[347040880,1735481443085,-500.0,9.514e-05,2]
[347040881,1735481443095,-500.0,9.514e-05,2]
[347040882,1735481443106,-500.0,9.514e-05,2]
[347040883,1735481443116,-500.0,9.514e-05,2]
[347040884,1735481443127,-500.0,9.514e-05,2]
[347040885,1735481443137,-500.0,9.514e-05,2]
[347040886,1735481443147,-507.77664109,9.514e-05,2]
[347040887,1735481443156,-500.0,9.514e-05,2]
[347040888,1735481443166,-500.0,9.514e-05,2]
[347040889,1735481443176,-1165.8,9.514e-05,2]
[347040890,1735481443185,-500.0,9.514e-05,2]
[347040891,1735481443195,-503.58149186,9.514e-05,2]
[347040892,1735481443205,-602.63,9.514e-05,2]
[347040893,1735481443215,-500.0,9.514e-05,2]
[347040894,1735481443224,-500.0,9.514e-05,2]
[347040895,1735481443233,-500.0,9.514e-05,2]
[347040896,1735481443243,-717.69,9.514e-05,2]
[347040897,1735481443254,-692.5,9.514e-05,2]
[347040898,1735481443264,-500.0,9.514e-05,2]
[347040899,1735481443339,-500.0,9.514e-05,2]
[347040900,1735481443358,-500.0,9.514e-05,2]
[347040901,1735481443369,-431.71421158,9.514e-05,2]
[347040902,1735481443378,-260.15685075,9.514e-05,2]
[347040903,1735481443388,-500.0,9.514e-05,2]
[347040904,1735481443397,-500.0,9.514e-05,2]
[347040905,1735481443407,-500.0,9.514e-05,2]
[347040906,1735481443417,-500.0,9.514e-05,2]
[347040907,1735481443426,-500.0,9.514e-05,2]
[347040908,1735481443435,-598.29,9.514e-05,2]
[347040909,1735481443446,-500.0,9.514e-05,2]
[347040910,1735481443458,-500.0,9.514e-05,2]
[347040911,1735481443467,-500.0,9.514e-05,2]
[347040912,1735481443477,-500.0,9.514e-05,2]
[347040913,1735481443488,-500.0,9.514e-05,2]
[347040914,1735481443498,-500.0,9.514e-05,2]
[347040915,1735481443508,-500.0,9.514e-05,2]
[347040916,1735481443517,-500.0,9.514e-05,2]
[347040917,1735481443528,-500.0,9.514e-05,2]
[347040918,1735481443538,-500.0,9.514e-05,2]
[347040919,1735481443547,-500.0,9.514e-05,2]
[347040920,1735481443557,-500.0,9.514e-05,2]
[347040921,1735481443566,-500.0,9.514e-05,2]
[347040922,1735481443576,-500.0,9.515e-05,2]
[347040923,1735481443585,-500.0,9.515e-05,2]
[347040924,1735481443595,-500.0,9.515e-05,2]
[347040925,1735481443605,-500.0,9.515e-05,2]
[347040926,1735481443616,-500.0,9.515e-05,2]
[347040927,1735481443626,-500.0,9.515e-05,2]
[347040928,1735481443635,-500.0,9.515e-05,2]
[347040929,1735481443645,-500.0,9.515e-05,2]
[347040930,1735481443655,-500.0,9.515e-05,2]
[347040931,1735481443664,-500.0,9.515e-05,2]
[347040932,1735481443674,-500.0,9.515e-05,2]
[347040933,1735481443683,-500.0,9.515e-05,2]
[347040934,1735481443693,-500.0,9.515e-05,2]
[347040935,1735481443703,-500.0,9.515e-05,2]
[347040936,1735481443712,-500.0,9.515e-05,2]
[347040937,1735481443722,-500.0,9.515e-05,2]
[347040938,1735481443732,-500.0,9.515e-05,2]
[347040939,1735481443741,-14519.97,9.515e-05,2]
[347040940,1735481443750,-500.0,9.515e-05,2]
[347040941,1735481443763,-500.0,9.515e-05,2]
[347040942,1735481443774,-500.0,9.515e-05,2]
[347040943,1735481443783,-521.93,9.515e-05,2]
[347040944,1735481443793,-500.0,9.515e-05,2]
[347040945,1735481443803,-500.0,9.515e-05,2]
[347040946,1735481443812,-500.0,9.515e-05,2]
[347040947,1735481443822,-500.83199224,9.515e-05,2]
[347040948,1735481443831,-500.0,9.515e-05,2]
[347040949,1735481443841,-500.0,9.516e-05,2]
[347040950,1735481443851,-1654.88,9.516e-05,2]
[347040951,1735481443861,-500.0,9.516e-05,2]
[347040952,1735481443871,-500.0,9.516e-05,2]
[347040953,1735481443880,-500.0,9.516e-05,2]
[347040954,1735481443889,-500.0,9.516e-05,2]
[347040955,1735481443899,-500.0,9.516e-05,2]
[347040956,1735481443909,-500.0,9.516e-05,2]
[347040957,1735481443918,-500.0,9.516e-05,2]
[347040958,1735481443928,-500.0,9.516e-05,2]
[347040959,1735481443937,-500.0,9.516e-05,2]
[347040960,1735481443947,-500.0,9.516e-05,2]
[347040961,1735481443956,-500.0,9.516e-05,2]
[347040962,1735481443966,-500.0,9.516e-05,2]
[347040963,1735481443975,-500.0,9.516e-05,2]
[347040964,1735481443985,-500.0,9.516e-05,2]
[347040965,1735481443995,-505.61015201,9.516e-05,2]
[347040966,1735481444005,-500.0,9.516e-05,2]
[347040967,1735481444014,-679.38,9.516e-05,2]
[347040968,1735481444023,-500.0,9.516e-05,2]
[347040969,1735481444032,-679.38,9.516e-05,2]
[347040970,1735481444041,-500.0,9.517e-05,2]
[347040971,1735481444051,-2927.25,9.517e-05,2]
[347040972,1735481444060,-587.66,9.517e-05,2]
[347040973,1735481444070,-500.0,9.517e-05,2]
[347040974,1735481444080,-500.0,9.517e-05,2]
[347040975,1735481444089,-452.00208039,9.518e-05,2]
[347040976,1735481444100,-4583.19,9.518e-05,2]
[347040977,1735481444110,-679.38,9.519e-05,2]
[347040978,1735481444119,-413.945,9.784e-05,2]
[347040979,1735481444129,-500.0,9.784e-05,2]
[347040980,1735481444138,-500.0,9.786e-05,2]
[347040981,1735481444147,-1446.72,9.786e-05,2]
[347040982,1735481444157,-731.37,9.786e-05,2]
[347040983,1735481444166,-194.16,9.788e-05,2]
[347040984,1735481444175,-500.0,9.788e-05,2]
[347040985,1735481444185,-500.0,9.788e-05,2]
[347040986,1735481444194,-500.0,9.788e-05,2]
[347040987,1735481444204,-500.0,9.788e-05,2]
[347040988,1735481444213,-500.0,9.788e-05,2]
[347040989,1735481444222,-500.0,9.788e-05,2]
[347040990,1735481444232,-536.55183484,9.788e-05,2]
[347040991,1735481444241,-175.43284209,9.788e-05,2]
[347040992,1735481444251,-504.89822312,9.788e-05,2]
[347040993,1735481444262,-500.0,9.788e-05,2]
[347040994,1735481444271,-500.0,9.788e-05,2]
[347040995,1735481444282,-500.0,9.788e-05,2]
[347040996,1735481444292,-500.0,9.788e-05,2]
[347040997,1735481444301,-500.0,9.788e-05,2]
[347040998,1735481444310,-500.0,9.788e-05,2]
[347040999,1735481444319,-500.0,9.788e-05,2]
[347041000,1735481444329,-621.02,9.788e-05,2]
[347041001,1735481444338,-500.0,9.788e-05,2]
[347041002,1735481444347,-500.0,9.788e-05,2]
[347041003,1735481444356,-500.0,9.788e-05,2]
[347041004,1735481444365,-500.0,9.788e-05,2]
[347041005,1735481444375,-500.0,9.788e-05,2]
[347041006,1735481444384,-500.0,9.788e-05,2]
[347041007,1735481444393,-500.0,9.788e-05,2]
[347041008,1735481444403,-500.0,9.788e-05,2]
[347041009,1735481444412,-500.0,9.788e-05,2]
[347041010,1735481444422,-500.0,9.788e-05,2]
[347041011,1735481444431,-500.0,9.788e-05,2]
[347041012,1735481444445,-500.0,9.788e-05,2]
[347041013,1735481444459,-535.06,9.788e-05,2]
[347041014,1735481444469,-500.0,9.788e-05,2]
[347041015,1735481444478,-754.68,9.788e-05,2]
[347041016,1735481444487,-1646.12,9.788e-05,2]
[347041017,1735481444496,-756.19,9.788e-05,2]
[347041018,1735481444505,-500.0,9.788e-05,2]
[347041019,1735481444514,-598.21,9.788e-05,2]
[347041020,1735481444524,-500.0,9.788e-05,2]
[347041021,1735481444535,-500.0,9.788e-05,2]
[347041022,1735481444544,-211.46763569,9.788e-05,2]
[347041023,1735481444554,-500.0,9.788e-05,2]
[347041024,1735481444563,-205.88,9.788e-05,2]
[347041025,1735481444572,-500.0,9.788e-05,2]
[347041026,1735481444581,-505.25453754,9.788e-05,2]
[347041027,1735481444590,-500.0,9.788e-05,2]
[347041028,1735481444599,-500.0,9.788e-05,2]
[347041029,1735481444608,-500.0,9.788e-05,2]
[347041030,1735481444618,-1165.8,9.788e-05,2]
[347041031,1735481444627,-185.71507622,9.788e-05,2]
[347041032,1735481444637,-500.0,9.788e-05,2]
[347041033,1735481444646,-500.0,9.788e-05,2]
[347041034,1735481444655,-602.63,9.788e-05,2]
[347041035,1735481444664,-500.0,9.788e-05,2]
[347041036,1735481444674,-501.60497127,9.788e-05,2]
[347041037,1735481444683,-717.69,9.788e-05,2]
[347041038,1735481444693,-692.5,9.788e-05,2]
[347041039,1735481444702,-500.0,9.788e-05,2]
[347041040,1735481444712,-500.0,9.788e-05,2]
[347041041,1735481444721,-500.0,9.788e-05,2]
[347041042,1735481444730,-500.0,9.788e-05,2]
[347041043,1735481444739,-598.29,9.788e-05,2]
[347041044,1735481444749,-500.0,9.788e-05,2]
[347041045,1735481444759,-500.0,9.788e-05,2]
[347041046,1735481444768,-500.0,9.788e-05,2]
[347041047,1735481444778,-500.0,9.788e-05,2]
[347041048,1735481444787,-500.0,9.788e-05,2]
[347041049,1735481444796,-500.0,9.788e-05,2]
[347041050,1735481444805,-500.0,9.788e-05,2]
[347041051,1735481444815,-500.0,9.788e-05,2]
[347041052,1735481444824,-504.4277026,9.788e-05,2]
[347041053,1735481444835,-500.0,9.788e-05,2]
[347041054,1735481444843,-500.0,9.788e-05,2]
[347041055,1735481444852,-500.0,9.788e-05,2]
[347041056,1735481444861,-500.0,9.788e-05,2]
[347041057,1735481444871,-500.0,9.789e-05,2]
[347041058,1735481444880,-500.0,9.789e-05,2]
[347041059,1735481444889,-500.0,9.789e-05,2]
[347041060,1735481444898,-500.0,9.789e-05,2]
[347041061,1735481444907,-500.0,9.789e-05,2]
[347041062,1735481444916,-500.0,9.789e-05,2]
[347041063,1735481444926,-500.0,9.789e-05,2]
[347041064,1735481444935,-500.0,9.789e-05,2]
[347041065,1735481444945,-500.0,9.789e-05,2]
[347041066,1735481444954,-500.0,9.789e-05,2]
[347041067,1735481444963,-500.0,9.789e-05,2]
[347041068,1735481444972,-500.0,9.789e-05,2]
[347041069,1735481445041,-500.0,9.789e-05,2]
[347041070,1735481445058,-500.0,9.789e-05,2]
[347041071,1735481445068,-500.0,9.789e-05,2]
[347041072,1735481445077,-524.99244873,9.789e-05,2]
[347041073,1735481445086,-500.0,9.789e-05,2]
[347041074,1735481445096,-14519.97,9.789e-05,2]
[347041075,1735481445105,-500.0,9.789e-05,2]
[347041076,1735481445114,-500.0,9.789e-05,2]
[347041077,1735481445124,-500.0,9.789e-05,2]
[347041078,1735481445133,-521.93,9.789e-05,2]
[347041079,1735481445142,-500.0,9.789e-05,2]
[347041080,1735481445152,-507.64432595,9.789e-05,2]
[347041081,1735481445161,-1654.88,9.79e-05,2]
[347041082,1735481445171,-500.0,9.79e-05,2]
[347041083,1735481445180,-500.0,9.79e-05,2]
[347041084,1735481445190,-500.0,9.79e-05,2]
[347041085,1735481445199,-500.0,9.79e-05,2]
[347041086,1735481445208,-500.0,9.79e-05,2]
[347041087,1735481445217,-500.0,9.79e-05,2]
[347041088,1735481445226,-500.0,9.79e-05,2]
[347041089,1735481445236,-365.41614164,9.79e-05,2]
[347041090,1735481445245,-500.0,9.79e-05,2]
[347041091,1735481445254,-500.0,9.79e-05,2]
[347041092,1735481445263,-500.0,9.79e-05,2]
[347041093,1735481445272,-500.0,9.79e-05,2]
[347041094,1735481445282,-500.0,9.79e-05,2]
[347041095,1735481445291,-500.0,9.79e-05,2]
[347041096,1735481445301,-500.0,9.79e-05,2]
[347041097,1735481445310,-679.38,9.79e-05,2]
[347041098,1735481445320,-2927.25,9.791e-05,2]
[347041099,1735481445329,-679.38,9.791e-05,2]
[347041100,1735481445338,-587.66,9.791e-05,2]
[347041101,1735481445348,-500.0,9.791e-05,2]
[347041102,1735481445357,-500.0,9.791e-05,2]
[347041103,1735481445366,-4583.19,9.792e-05,2]
[347041104,1735481445376,-500.0,0.00010058,2]
[347041105,1735481445385,-500.0,0.0001006,2]
[347041106,1735481445394,-1446.72,0.0001006,2]
[347041107,1735481445404,-731.37,0.0001006,2]
[347041108,1735481445413,-500.0,0.00010062,2]
[347041109,1735481445422,-500.0,0.00010062,2]
[347041110,1735481445431,-500.0,0.00010062,2]
[347041111,1735481445441,-500.0,0.00010062,2]
[347041112,1735481445451,-500.0,0.00010062,2]
[347041113,1735481445462,-500.0,0.00010062,2]
[347041115,1735481445471,-500.0,0.00010062,2]
[347041116,1735481445480,-500.0,0.00010062,2]
[347041118,1735481445491,-621.02,0.00010062,2]